Cogmind - Beta 12 @@@ ROGUE MODE // 2023.03.05 @ 21:10:44 Player: Red Box Result: Destroyed by as-73085 with Assembled Rifle Performance ------------- Evolutions (0) 0 Regions Visited (4) 800 Robots Destroyed (31) 155 Value Destroyed (631) 631 Prototype IDs (0) 0 Alien Tech Used (0) 0 Bonus (-3) -3 TOTAL SCORE: 1583 Bonus ------- Friendly Fire -3 Cogmind --------- Core Integrity 0/250 Matter 300/300 Energy 106/160 System Corruption 5% Temperature Hot (259) Movement Rolling (125) Ox3 Location -9/Mines Parts ------- > --- POWER (1) -------- Light Nuclear Core > --- PROPULSION (2) --- Wheel > --- UTILITY (2) ------ Improved Heat Sink Large Storage Unit > --- WEAPON (2) ------- Light EM Pulse Cannon Light EM Pulse Cannon > --- INVENTORY (15) --- Ion Engine High-capacity Storage Unit High-capacity Battery (250) Bomb Drone Bay EM Pulse Gun Light EM Pulse Cannon Light EM Pulse Cannon Beam Cannon Assault Rifle Assault Rifle EMP Blaster EMP Blaster Mining Laser Peak State ------------ > --- POWER ------------ Light Nuclear Core > --- PROPULSION ------- Wheel > --- UTILITY ---------- Improved Heat Sink Large Storage Unit > --- WEAPON ----------- Light EM Pulse Cannon Light EM Pulse Cannon > --- INVENTORY -------- Ion Engine High-capacity Storage Unit High-capacity Battery Bomb Drone Bay EM Pulse Gun Light EM Pulse Cannon Light EM Pulse Cannon Beam Cannon Assault Rifle Assault Rifle EMP Blaster EMP Blaster Mining Laser [Rating: 15] Favorites ----------- Power Light Ion Engine Engine Light Ion Engine Power Core Light Nuclear Core Propulsion Wheel Leg Aluminum Leg Wheel Wheel Utility Improved Terrain Scanner Device Improved Terrain Scanner Storage Large Storage Unit Weapon Assault Rifle Energy Gun Medium Laser Energy Cannon Light EM Pulse Cannon Ballistic Gun Assault Rifle Launcher Grenade Launcher Special Weapon Mining Laser Build | -11 -10 -10 -10 -9 ------- Run | Jun Mat Min Exi Min Slots Evolved . | . . . . . Power . | . . . . . Propulsion . | . . . . . Utility . | . . . . . Weapon . | . . . . . Parts Attached 29 | 7 7 6 3 6 Power 2 | 1 . 1 . . Engine 1 | 1 . . . . Core 1 | . . 1 . . Reactor . | . . . . . Propulsion 6 | 2 2 . 1 1 Treads . | . . . . . Leg 2 | 2 . . . . Wheel 4 | . 2 . 1 1 Hover . | . . . . . Flight . | . . . . . Utility 5 | 2 2 . . 1 Device 2 | 1 . . . 1 Storage 3 | 1 2 . . . Processor . | . . . . . Hackware . | . . . . . Protection . | . . . . . Artifact . | . . . . . Weapon 16 | 2 3 5 2 4 Energy Gun 1 | 1 . . . . Energy Cannon 3 | . . . . 3 Ballistic Gun 8 | 1 3 2 2 . Ballistic Cannon . | . . . . . Launcher 3 | . . 2 . 1 Special Weapon 1 | . . 1 . . Impact Weapon . | . . . . . Slashing Weapon . | . . . . . Piercing Weapon . | . . . . . Special Melee Weapon . | . . . . . Unidentified Prototypes . | . . . . . Parts Lost 6 | . . 2 . 4 Power 1 | . . 1 . . Propulsion 3 | . . 1 . 2 Utility 1 | . . . . 1 Weapon 1 | . . . . 1 Highest Loss Streak 2 | . . 1 . 2 To Critical Strikes . | . . . . . Average Slot Usage (%) 94 | . 99 93 72 91 Engine 8 | . 14 4 . . Core 5 | . . 9 14 14 Leg 5 | . 12 . . . Wheel 19 | . 15 22 26 22 Device 13 | . 14 14 14 13 Storage 14 | . 14 14 14 14 Energy Gun 4 | . 8 . . . Ballistic Gun 19 | . 19 27 3 20 Naked Turns . | . . . . . Heaviest Build 34 | 12 28 32 30 34 Greatest Support 20 | 20 20 20 20 20 Greatest Overweight (x) 3 | 1 1 2 2 3 Average Overweight (x) 1 | . . 1 1 1 Largest Inventory Capacity 15 | 8 15 15 15 15 Average Capacity 13 | 7 12 15 15 15 Most Carried 15 | 8 15 15 15 15 Average Carried 12 | 5 10 14 14 14 Final Capacity 15 | 8 15 15 15 15 Final Carried 15 | 8 15 15 14 14 Class Distribution -------------------- 99% | Mutant Dominant Class ---------------- Mutant | -10/Materials Mutant | -10/Mines Mutant | -10/Exiles Mutant | -9/Mines Resources | -11 -10 -10 -10 -9 ----------- Run | Jun Mat Min Exi Min Matter Collected 839 | 272 174 214 . 179 Remotely . | . . . . . Salvage Created 693 | 13 223 336 . 121 Parts 50 | 4 13 25 . 8 Haulers Intercepted . | . . . . . Recyclers Shooed . | . . . . . Parts Field Recycled . | . . . . . Retrieved Matter . | . . . . . Parts Self-Destructed . | . . . . . Prevented . | . . . . . Kills | -11 -10 -10 -10 -9 ------- Run | Jun Mat Min Exi Min Combat Hostiles Destroyed 30 | . 9 15 . 6 Guns 19 | . 9 8 . 2 Cannons 1 | . . . . 1 AOE 10 | . . 7 . 3 Classes Destroyed 6 | 1 3 . . 2 Tunneler 1 | 1 . . . . Watcher 1 | . 1 . . . Swarmer 18 | . 6 9 . 3 Grunt 10 | . 3 6 . 1 Brawler 1 | . . . . 1 Assembled 1 | . . . . 1 Best Kill Streak 7 | 1 4 7 . 3 Combat Bots Only 7 | . 3 7 . 3 Max Kills in Single Turn 4 | 1 1 4 . 3 Gunslinging . | . . . . . Exploded 3 | . . 3 . 3 Melee . | . . . . . Uniques/NPCs Destroyed . | . . . . . Combat | -11 -10 -10 -10 -9 -------- Run | Jun Mat Min Exi Min Damage Taken 960 | . 265 312 . 383 Core 260 | . 35 93 . 132 Absorbed by Shields . | . . . . . Regen/Repaired (Parts) 63 | . 63 . . . Core Remaining (%) 100 | 100 . . . . Volleys Fired 83 | 2 38 27 . 16 Largest 2 | 2 2 2 . 2 Hottest 112 | 70 70 100 . 112 Shots Fired 157 | 4 76 50 . 27 Gun 141 | 4 76 42 . 19 Cannon 6 | . . . . 6 Launcher 6 | . . 4 . 2 Special 4 | . . 4 . . Kinetic 104 | 2 41 42 . 19 Thermal 45 | 2 35 4 . 4 Explosive 4 | . . 2 . 2 Electromagnetic 4 | . . 2 . 2 Robot Hit Streak 15 | 2 6 9 . 15 Robot Miss Streak 4 | 1 4 2 . 2 Penetration Max . | . . . . . Secondary Targets . | . . . . . Shots Hit Robots 89 | 3 36 29 . 21 Core Hits 50 | 2 13 23 . 12 Critical Kills . | . . . . . Critical Parts Destroyed . | . . . . . Critical Strikes 5 | 1 4 . . . Burn 5 | 1 4 . . . Melee Attacks . | . . . . . Impact . | . . . . . Slashing . | . . . . . Piercing . | . . . . . Sneak Attacks . | . . . . . Combat Hostiles . | . . . . . Follow-up Attacks . | . . . . . Damage Inflicted 1638 | 27 479 679 . 453 Guns 1060 | 27 479 356 . 198 Cannons 71 | . . . . 71 Explosions 507 | . . 323 . 184 Melee . | . . . . . Ramming . | . . . . . Kinetic 859 | 15 290 356 . 198 Thermal 240 | 12 189 5 . 34 Explosive 450 | . . 266 . 184 Electromagnetic 89 | . . 52 . 37 Impact . | . . . . . Slashing . | . . . . . Piercing . | . . . . . Highest Corruption 5 | . . 1 1 5 Average Corruption 2 | . . 1 1 4 Corruption Purged . | . . . . . Corruption Blocked . | . . . . . Effects 16 | . . 2 1 13 Message Errors 3 | . . . . 3 Matter Fused 3 | . . . . 3 Heat Flow Errors 4 | . . . . 4 Energy Discharges 3 | . . 1 1 1 Data Loss (minor) 1 | . . 1 . . Alerts 1 | . . . . 1 Weapon Failures 1 | . . . . 1 Overload Shots . | . . . . . Overflow Damage 3 | . . . . 3 Projectiles . | . . . . . Explosions 3 | . . . . 3 Melee . | . . . . . Knockbacks . | . . . . . Impact . | . . . . . Kinetic . | . . . . . Secondary . | . . . . . Self-Inflicted Damage 33 | . . 12 . 21 Shots 2 | . . 1 . 1 Rammed . | . . . . . Targets Rammed . | . . . . . Kicked . | . . . . . Crushed . | . . . . . Highest Temperature 259 | 60 75 112 . 259 Average Temperature 37 | 30 28 36 . 78 Received Heat Transfer 308 | . 63 153 . 92 Siege Activations . | . . . . . Robots Corrupted . | . . . . . Combat Hostiles . | . . . . . Parts Fried . | . . . . . Impact Corruptions . | . . . . . Robots Melted . | . . . . . Combat Hostiles . | . . . . . Parts Melted . | . . . . . Heat Transferred 1086 | 111 851 50 . 74 Parts Sabotaged . | . . . . . Parts Stolen . | . . . . . Parts Stripped . | . . . . . Power Chain Reactions 1 | . . 1 . . Missiles Intercepted . | . . . . . Alert | -11 -10 -10 -10 -9 ------- Run | Jun Mat Min Exi Min Peak Influence 273 | 5 220 273 . 125 Initial 14 | . 3 14 . . Average 91 | 2 83 126 . 65 Maximum Alert Level 1 | . 1 1 . . Low Security (%) 87 | 100 98 62 . 100 Level 1 12 | . 1 37 . . Level 2 . | . . . . . Level 3 . | . . . . . Level 4 . | . . . . . Level 5 . | . . . . . High Security . | . . . . . Max Security . | . . . . . Squads Dispatched . | . . . . . Investigation . | . . . . . Extermination . | . . . . . Reinforcement . | . . . . . Assault . | . . . . . Garrison . | . . . . . Intercept . | . . . . . Searches Triggered . | . . . . . Construction Impeded . | . . . . . Haulers Reinforced . | . . . . . Active Scanning Responses . | . . . . . Cargo Convoy Interrupts . | . . . . . Stealth | -11 -10 -10 -10 -9 --------- Run | Jun Mat Min Exi Min Distress Signals 3 | . 3 . . . Communications Jammed . | . . . . . Distress Signals . | . . . . . Times Spotted 48 | . 25 14 . 9 Peak Tracking Total 8 | . 6 8 . 4 Tactical Retreats 8 | . 6 1 . 1 Traps | -11 -10 -10 -10 -9 ------- Run | Jun Mat Min Exi Min Traps Triggered . | . . . . . Indirectly . | . . . . . Trap Hack Attempts . | . . . . . Triggered . | . . . . . Disarmed . | . . . . . Reprogrammed . | . . . . . Reused . | . . . . . Traps Extracted . | . . . . . Installed . | . . . . . Triggered . | . . . . . Machines | -11 -10 -10 -10 -9 ---------- Run | Jun Mat Min Exi Min Machines Disabled . | . . . . . Max in Single Turn . | . . . . . Machines Repaired . | . . . . . Machines Sabotaged . | . . . . . Overloaded Fab Kills . | . . . . . Hacking | -11 -10 -10 -10 -9 --------- Run | Jun Mat Min Exi Min Machines Accessed 12 | . 10 . 1 1 Terminals 7 | . 7 . . . Fabricators . | . . . . . Repair Stations 1 | . 1 . . . Recycling Units 2 | . 2 . . . Scanalyzers . | . . . . . Garrison Access . | . . . . . Total Hacks 40 | . 38 . 1 1 Successful 24 | . 22 . 1 1 Failed 15 | . 15 . . . Catastrophic 1 | . 1 . . . Database Lockouts 1 | . 1 . . . Manual 31 | . 31 . . . Terminals 27 | . 27 . . . Fabricators . | . . . . . Repair Stations 2 | . 2 . . . Recycling Units 9 | . 9 . . . Scanalyzers . | . . . . . Garrison Access . | . . . . . Terminal Hacks 8 | . 6 . 1 1 Record 1 | . . . 1 . Robot Analysis 3 | . 3 . . . Open Door 1 | . . . . 1 Terminal Index 1 | . 1 . . . Locate Traps 2 | . 2 . . . Fabricator Hacks . | . . . . . Repair Station Hacks 2 | . 2 . . . Scan Component 1 | . 1 . . . Repair 1 | . 1 . . . Recycling Unit Hacks 2 | . 2 . . . Retrieve Components 2 | . 2 . . . Scanalyzer . | . . . . . Garrison Access Hacks . | . . . . . Unauthorized Hacks 12 | . 12 . . . Terminals 6 | . 6 . . . Track 1 | . 1 . . . Assimilate 2 | . 2 . . . Botnet 2 | . 2 . . . Operators 1 | . 1 . . . Fabricators . | . . . . . Repair Stations . | . . . . . Recycling Units 6 | . 6 . . . Monitor 1 | . 1 . . . Reject 2 | . 2 . . . Recyclers 1 | . 1 . . . Mask 2 | . 2 . . . Scanalyzers . | . . . . . Garrison Access . | . . . . . Data Cores Recovered . | . . . . . Used . | . . . . . Hacking Detections 8 | . 8 . . . Full Trace Events . | . . . . . Feedback Events . | . . . . . Feedback Blocked . | . . . . . Robot Schematics Acquired . | . . . . . Robots Built . | . . . . . Authchips . | . . . . . Time . | . . . . . Total Robot Build Rating . | . . . . . Part Schematics Acquired . | . . . . . Parts Built . | . . . . . Authchips . | . . . . . Time . | . . . . . Total Part Build Rating . | . . . . . Parts Repaired 1 | . 1 . . . Time 26 | . 26 . . . Parts Recycled . | . . . . . Recycled Matter . | . . . . . Retrieved Matter . | . . . . . Retrieved Components 10 | . 10 . . . Parts Scanalyzed . | . . . . . Part Schematics Acquired . | . . . . . Parts Damaged . | . . . . . Bothacking | -11 -10 -10 -10 -9 ------------ Run | Jun Mat Min Exi Min Used RIF Installer . | . . . . . Robots Hacked . | . . . . . Non-combat . | . . . . . Combat . | . . . . . Robot Hacks Applied . | . . . . . Relay Couplers Released . | . . . . . Fabnet Peak Effective % . | . . . . . Robots Rewired . | . . . . . Allies Hacked . | . . . . . Hacks Repelled . | . . . . . Allies | -11 -10 -10 -10 -9 -------- Run | Jun Mat Min Exi Min Total Allies 1 | . 1 . . . Largest Group 1 | . 1 1 1 1 Highest-Rated Group 10 | . 10 10 10 10 Highest-Rated Ally 10 | . 10 10 10 10 Total Orders 6 | . . 6 . . STAY 3 | . . 3 . . FOLLOW 3 | . . 3 . . Ally Attacks . | . . . . . Total Damage . | . . . . . Kills . | . . . . . Allies Corrupted . | . . . . . Allies Melted . | . . . . . Intel | -11 -10 -10 -10 -9 ------- Run | Jun Mat Min Exi Min Robot Analysis Total 3 | . 3 . . . Derelict Logs Recovered 3 | . . 2 . 1 Drone Launches . | . . . . . Drone Recoveries . | . . . . . Exploration | -11 -10 -10 -10 -9 ------------- Run | Jun Mat Min Exi Min Turns Passed 3127 | 81 1486 828 320 412 Spaces Moved 2433 | 49 1038 694 324 328 Core 6 | 6 . . . . Treads . | . . . . . Legs 371 | 43 328 . . . Wheels 2056 | . 710 694 324 328 Hover . | . . . . . Flight . | . . . . . Fastest Speed 50 | 50 80 95 95 95 Average Speed 101 | 116 102 101 96 103 Slowest Speed 125 | 120 120 110 110 125 Overloaded Moves . | . . . . . Propulsion Burnouts . | . . . . . Robots Hopped . | . . . . . Cave-ins Triggered . | . . . . . Exploration Rate (%) 65 | 5 99 98 61 65 Regions Visited 4 Branch Regions 3 Pre-discovered Areas 3 | . . 2 1 . Known Exits Taken . | . . . . . Unknown Exits Taken 4 | 1 1 1 1 . Scrap Searched 3 | . . 3 . . Spaces Dug 4 | . . 4 . . Terrain Destroyed 23 | . . 17 . 6 Melee . | . . . . . Projectile 4 | . . 4 . . AOE 19 | . . 13 . 6 Terrain Rammed . | . . . . . Walls Destroyed . | . . . . . Machines Disabled . | . . . . . Actions | -11 -10 -10 -10 -9 --------- Run | Jun Mat Min Exi Min Total 2923 | 66 1390 761 333 373 Wait 334 | . 286 31 . 17 Move 2429 | 48 1037 693 323 328 Hop . | . . . . . Pick Up 32 | 9 14 2 3 4 Fast Attach 9 | 6 1 1 1 . Attach 9 | 1 3 . 2 3 Detach . | . . . . . Swap 11 | . 3 5 . 3 Drop 16 | . 8 2 4 2 Fire 83 | 2 38 27 . 16 Melee . | . . . . . Ram . | . . . . . Kick . | . . . . . Crush . | . . . . . Escape Stasis . | . . . . . Rewire . | . . . . . Trap . | . . . . . Miscellaneous . | . . . . . Route ------- -11/Junkyard -10/Materials (discovered 4 exits: [*Mat x3] / [*Min]) -10/Mines (discovered 3 exits: [*Mat x2] / *Exi) -10/Exiles -9/Mines History --------- Turn | Location | Event 7 | -11/Junkyard | Discovered new exit (range 16) 82 | -11/Junkyard | Entered Materials 116 | -10/Materials | Discovered new exit (range 10) 302 | -10/Materials | Discovered new exit (range 11) 311 | -10/Materials | Build established: Mutant 915 | -10/Materials | Discovered new exit (range 13) 1000 | -10/Materials | Discovered new exit (range 11) 1189 | -10/Materials | Central database locked down 1339 | -10/Materials | Repaired Assault Rifle 1568 | -10/Materials | Entered Mines 1568 | -10/Mines | Accompanied by 1 ally 1647 | -10/Mines | Learned location of Mines (-9) 1925 | -10/Mines | Discovered new exit (range 10) 2007 | -10/Mines | Deemed a non-threat by the Exiles lab entrance 2007 | -10/Mines | Discovered new exit (range 5) 2069 | -10/Mines | Core integrity fell below 50% 2090 | -10/Mines | Destroyed 7 combat bots 2097 | -10/Mines | Discovered new exit (range 6) 2396 | -10/Mines | Entered Exiles 2396 | -10/Exiles | Accompanied by 1 ally 2423 | -10/Exiles | Discovered new exit (range 14) 2439 | -10/Exiles | Met 8R-AWN 2455 | -10/Exiles | Met EX-HEX 2483 | -10/Exiles | Met EX-BIN 2516 | -10/Exiles | Learned location of Zion (-6) 2523 | -10/Exiles | Met EX-DEC 2716 | -10/Exiles | Entered Mines 2716 | -9/Mines | Accompanied by 1 ally 2733 | -9/Mines | Core integrity fell below 20% 2847 | -9/Mines | Found the Drone Emporium 2848 | -9/Mines | Assembled infested the area 2851 | -9/Mines | Found Prototype Device 2853 | -9/Mines | Assisted by a Guerilla fighting off Assembled 3128 | -9/Mines | Destroyed by as-73085 with Assembled Rifle Last Messages --------------- 02969_ U-05 Engineer lays Concrete. 02970_ U-05 Engineer builds a Wall. 02972_ S-10 Pest destroyed. 02973_ R-06 Scavenger destroyed. 02975_ Wheel destroyed. 02975_ U-05 Engineer lays Concrete. 02980_ The unstable cave ceiling collapses. 02981_ Grenade Launcher destroyed. 02983_ Acquired 26 matter. 02990_ System corrupted: Heat flow error (+109). 03009_ System corrupted: Matter fused (-8). 03030_ K-01 Serf collects debris. 03044_ 15=K&:F/EX#OW2>LH:IU#TATB 03100_ Acquired 33 matter. 03120_ K-01 Serf collects debris. 03122_ Acquired 5 matter. 03124_ K-01 Serf collects debris. 03125_ System corrupted: Heat flow error (+281). 03126_ as-42542 destroyed. 03127_ K-01 Serf collects debris. Map ----- +----------------------------------------------------+ | ?????????????????????????????????# | | ?????????????????????????????????# | | ?????????????????????????????????# | | ?????????????????????????????????## | | ??????????????????????????????????# # ## | | ??????????????????????????????????## #### ### | | ???????????????????????????????????### #??# #### | | ?????????????????????????????????????# #??# #### | | ?????????????????????????????????????# #??# #?# | | ?????????????????????????????????????# #??# #?? | | ??????????????????? ????????????????## #### #?# | | ???????????????? ???????????????### ## #?# | | ?????????????? ??????????????# #?# | | ????????????## ! ??????????????## #?# | | ???????????? =%= ???????????????# #### ##?? | | ????????????# k *= ???????????????# #??## ##?? | | ?????????????#### ????????????### ##??## #?? | | ?????????????? ???????????## ##??# ##? | | ?????????? ? # ???????????# #??# #? | | ?????????? a=### =######?????# #??# #? | | ????????? =*%!! !% # # ####??# " ##??# #? | | ????????? !*=%!% ! ## ???#"%" ##???# #? | | ???????? *!#!| ##??## " #???## #? | | ???????? %!= * | #### ##### ##? | | ??????????# # =% =% % ##? | | ???????????????# =%= @o* #? | | ???????????????## = =* = # ####### ## | | ????????????????##*% =% # ### #????# # | | ?????????????????## ! # ###?# #????# | | ??????????????????## [= ##???## ##????# | | ???????????????????## % ##????####?????# | | ????????????????????# [ ???????????????## | | ????????????????????# % ????????????????## | | ????????????????????#% * #????????????????## | | ??????????????????? ##??????????????????## | | ??????????????????? %#????????????????????## | | ??????????????????# % #?????????????######??### | | ??????????????????#### #????????????## ##???# | | ?????????????????????## ##???????????# #???# | | ?????????????????????## ############# ##?## | | ????????????????#???## ### | | ????????????????????# | | ????????????????????# ######### ## | | ????????????????????## #???????## #### | | ?????????????????????### ##???????## #??## | | ???????????????# ####### ##???#????# ##???##### | | ???????????????# #?????????# #????????? | | ???????????????######### ####??????# #????????? | | ???????????????????????# #??????## ##????????# | | ????????????????????#??# #??#????###????????# | +----------------------------------------------------+ Best States ------------- Heat Dissipation 39 Energy Generation 14 Energy Capacity 160 Matter Stores 300 Matter Capacity 300 Sight Range 16 Terrain Scan Range 16 Terrain Scan Density 10 Evasion (%) 55 Item Schematics ----------------- None Robot Schematics ------------------ None Fabricated ------------ Nothing Alien Tech Used ----------------- None Achievements -------------- None Challenges ------------ None Game ------ Seed TransportBoreWings Manual? 0 Play Time 00:26:16 Cumulative 531.5 hours Start 2023.03.05 @ 20:39:51 End 2023.03.05 @ 21:10:44 Sessions 1 Manual Loads 0 Difficulty Rogue Special Mode None Game No. 382 Rogue 382 Adventurer 0 Explorer 0 Win Type - Total 1 Types 1/0/0/0/0/0/0/0/0 Lore% 69 Gallery% 77 Achievement% 58 Wizard Run 0 Options --------- ASCII 0 Keyboard 0 Movement Mouse Keybinds 0 Fullscreen 1 Font 16/SmallcapsGlow Map View 75x55 Tactical HUD 1 Map Filters NONE Filters NONE Steam 1 RUN: f3decd11-aebd-4875-aec9-4ba8a8f798f6